Workbook

Sheet паспорт
A1: ПАТ "УКРТРАНСГАЗ" | G1: ПАСПОРТ ФІЗИКО-ХІМІЧНИХ ПОКАЗНИКІВ ПРИРОДНОГО ГАЗУ № 616
A2: Філія "УМГ "ХАРКІВТРАНСГАЗ" | G2: переданого Криворізьким ЛВУМГ та прийнятого ПАТ "Дніпропетровськгаз", ПАТ"Дніпрогаз"
A3: Криворізьке ЛВУМГ | G3: Маршрут № 616
A4: Вимірювальна хіміко-аналітична лабораторія
A5: Свідоцтво № ПЄ 0048/2013 чинне до 16.05.2018р. | K5: по газопроводу ШДО, ШДКРІ | V5: за період з | X5: 2017-02-01 | Z5: по | AA5: 2017-02-28
A9: Число місяця | B9: Компонентний склад, мол. % | N9: Фізико-хімічні показники газу обчислені на основі компонентного складу, 101,325 кПа | X9: Температура точки роси за вологою (Р = 3.92 МПа), °С | Y9: Температура точки роси за вуглеводнями, °С | Z9: Вміст сірководню, г/м3 | AA9: Вміст меркаптанової сірки, г/м3 | AB9: Вміст механічних домішок, г/м3
N10: Густина абсолютна, кг/м3,при 20 °С, | O10: Температура вимірювання/згоряння при 20/25°С
B11: метан, С1 | C11: етан, С2 | D11: пропан, С3 | E11: ізо-бутан, і-С4 | F11: н-бутан, н-С4 | G11: нео-пентан, нео-С5 | H11: ізо-пентан, і-С5 | I11: н-пентан, н-С5 | J11: гексани та вищі, С6+ | K11: кисень, О2 | L11: азот, N2 | M11: діоксид вуглецю, CО2 | O11: Теплота згоряння нижча | R11: Теплота згоряння вища | U11: Число Воббе вище
O12: ккал/м³ | P12: МДж/м³ | Q12: кВт⋅год/м³ | R12: ккал/м³ | S12: МДж/м³ | T12: кВт⋅год/м³ | U12: ккал/м³ | V12: МДж/м³ | W12: кВт⋅год/м³
A13: 1 | B13: 95.8852 | C13: 2.1699 | D13: 0.6777 | E13: 0.105 | F13: 0.1138 | G13: 0.0011 | H13: 0.0247 | I13: 0.019 | J13: 0.0309 | K13: 0.0091 | L13: 0.7946 | M13: 0.1689 | N13: 0.7007 | O13: 8187 | P13: 34.2792 | Q13: =P13/3.6 -> 9.522 | R13: 9075 | S13: 37.9933 | T13: =S13/3.6 -> 10.55369444 | U13: =V13/0.0041868 -> 11897.60676 | V13: 49.8129 | W13: =V13/3.6 -> 13.83691667 | X13: -22.9 | Y13: -18.7 | AC13: =SUM(B13:M13)+$K$44+$N$44 -> 99.9999
A14: 2 | B14: 96.0967 | C14: 2.056 | D14: 0.6408 | E14: 0.101 | F14: 0.1067 | G14: 0.001 | H14: 0.0228 | I14: 0.0172 | J14: 0.0298 | K14: 0.0092 | L14: 0.7626 | M14: 0.1563 | N14: 0.699 | O14: 8176 | P14: 34.2311 | Q14: 9.508638889 | R14: 9062 | S14: 37.9424 | T14: 10.53955556 | U14: =V14/0.0041868 -> 11896.34088 | V14: 49.8076 | W14: 13.83544444 | X14: -23 | Y14: -17.9 | AB14: відсутні | AC14: 100.0001
A15: 3 | B15: 96.2989 | C15: 1.9353 | D15: 0.6022 | E15: 0.0959 | F15: 0.1005 | G15: 0.0009 | H15: 0.0215 | I15: 0.0163 | J15: 0.0217 | K15: 0.0095 | L15: 0.7492 | M15: 0.148 | N15: 0.6971 | O15: 8160 | P15: 34.165 | Q15: 9.490277778 | R15: 9046 | S15: 37.872 | T15: 10.52 | U15: 11889.6532 | V15: 49.7796 | W15: 13.82766667 | X15: -23.1 | Y15: -19.1 | AC15: 99.9999 | AD15: =IF(AC15=100,"ОК"," ") -> 
A16: 4 | O16: 8160 | P16: 34.17 | Q16: 9.491666667 | R16: 9046 | S16: 37.87 | T16: =S17/3.6 -> 10.51944444 | U16: 11889.74873 | V16: 49.78 | W16: 13.82777778 | AC16: 0 | AD16: =IF(AC16=100,"ОК"," ") -> 
A17: 5 | O17: 8160 | P17: 34.17 | Q17: 9.491666667 | R17: 9046 | S17: 37.87 | T17: 10.52 | U17: 11889.74873 | V17: 49.78 | W17: 13.82777778 | AC17: 0
A18: 6 | B18: 96.4839 | C18: 1.8361 | D18: 0.5679 | E18: 0.0904 | F18: 0.0917 | G18: 0.0012 | H18: 0.0188 | I18: 0.0138 | J18: 0.0134 | K18: 0.0104 | L18: 0.7353 | M18: 0.1372 | N18: 0.6954 | O18: 8145 | P18: 34.1021 | Q18: 9.472805556 | R18: 9030 | S18: 37.8049 | T18: 10.50136111 | U18: 11883.87313 | V18: 49.7554 | W18: 13.82094444 | X18: -22.2 | Y18: -18.7 | Z18: <0,0001 | AA18: 0.001 | AC18: 100.0001
A19: 7 | B19: 96.3866 | C19: 1.8883 | D19: 0.5745 | E19: 0.092 | F19: 0.0929 | G19: 0.001 | H19: 0.0192 | I19: 0.0144 | J19: 0.0157 | K19: 0.0082 | L19: 0.7723 | M19: 0.1349 | N19: 0.696 | O19: 8148 | P19: 34.1144 | Q19: 9.476222222 | R19: 9033 | S19: 37.8176 | T19: 10.50488889 | U19: 11882.2012 | V19: 49.7484 | W19: 13.819 | X19: -22.7 | Y19: -19 | AC19: 100 | AD19: ОК
A20: 8 | B20: 96.0374 | C20: 2.047 | D20: 0.6279 | E20: 0.0958 | F20: 0.106 | G20: 0.0009 | H20: 0.0235 | I20: 0.0188 | J20: 0.022 | K20: 0.0085 | L20: 0.8658 | M20: 0.1465 | N20: 0.6989 | O20: 8163 | P20: 34.1786 | Q20: 9.494055556 | R20: 9049 | S20: 37.8851 | T20: =S20/3.6 -> 10.52363889 | U20: 11879.12009 | V20: 49.7355 | W20: 13.81541667 | X20: -22.8 | Y20: -19.2 | AC20: 100.0001
A21: 9 | B21: 93.6739 | C21: 3.508 | D21: 0.941 | E21: 0.1106 | F21: 0.1325 | G21: 0.0013 | H21: 0.0272 | I21: 0.023 | J21: 0.037 | K21: 0.0091 | L21: 1.3504 | M21: 0.186 | N21: 0.7154 | O21: 8266 | P21: 34.6085 | Q21: 9.613472222 | R21: 9157 | S21: 38.3385 | T21: =S21/3.6 -> 10.64958333 | U21: 11881.91459 | V21: 49.7472 | W21: 13.81866667 | X21: -21.1 | Y21: -16.5 | AC21: 100 | AD21: ОК
A22: 10 | B22: 94.1821 | C22: 3.0604 | D22: 0.8378 | E22: 0.1016 | F22: 0.1193 | G22: 0.0012 | H22: 0.0263 | I22: 0.0218 | J22: 0.0463 | K22: 0.0089 | L22: 1.3733 | M22: 0.2209 | N22: 0.7119 | O22: 8219 | P22: 34.4109 | Q22: 9.558583333 | R22: 9106 | S22: 38.1262 | T22: 10.59061111 | U22: 11845.03678 | V22: 49.5928 | W22: 13.77577778 | X22: -21.1 | Y22: -15 | AC22: 99.9999
A23: 11 | O23: 8219 | P23: 34.41 | Q23: 9.558333333 | R23: 9106 | S23: 38.13 | T23: 10.59166667 | U23: 11845.03678 | V23: 49.5928 | W23: 13.77577778 | AC23: 0
A24: 12 | B24: 95.1959 | C24: 2.4037 | D24: 0.6887 | E24: 0.0976 | F24: 0.1095 | G24: 0.0009 | H24: 0.0246 | I24: 0.0199 | J24: 0.0423 | K24: 0.0116 | L24: 1.1796 | M24: 0.2257 | N24: 0.7049 | O24: 8169 | P24: 34.2036 | Q24: 9.501 | R24: 9054 | S24: 37.9067 | T24: 10.52963889 | U24: 11834.74252 | V24: 49.5497 | W24: 13.76380556 | AC24: 100 | AD24: ОК
A25: 13 | B25: 95.7684 | C25: 2.1513 | D25: 0.6269 | E25: 0.092 | F25: 0.0973 | G25: 0.001 | H25: 0.0205 | I25: 0.0158 | J25: 0.0254 | K25: 0.0088 | L25: 1.0076 | M25: 0.185 | N25: 0.7004 | O25: 8153 | P25: 34.1336 | Q25: 9.481555556 | R25: 9037 | S25: 37.8345 | T25: 10.50958333 | U25: 11850.55412 | V25: 49.6159 | W25: 13.78219444 | X25: -20.6 | Y25: -13.6 | AB25: відсутні | AC25: 100 | AD25: ОК
A26: 14 | B26: 95.9601 | C26: 2.0546 | D26: 0.5938 | E26: 0.0876 | F26: 0.0929 | G26: 0.0009 | H26: 0.0195 | I26: 0.0151 | J26: 0.0227 | K26: 0.0103 | L26: 0.9671 | M26: 0.1755 | N26: 0.6988 | O26: 8143 | P26: 34.095 | Q26: 9.470833333 | R26: 9027 | S26: 37.7938 | T26: 10.49827778 | U26: 11850.81685 | V26: 49.617 | W26: 13.7825 | X26: -20.4 | Y26: -13.6 | AC26: 100.0001
A27: 15 | B27: 95.7447 | C27: 2.1582 | D27: 0.6127 | E27: 0.0865 | F27: 0.0929 | G27: 0.001 | H27: 0.0199 | I27: 0.0158 | J27: 0.023 | K27: 0.0103 | L27: 1.048 | M27: 0.1871 | N27: 0.7002 | O27: 8145 | P27: 34.1018 | Q27: 9.472722222 | R27: 9028 | S27: 37.7999 | T27: 10.49997222 | U27: 11841.00029 | V27: 49.5759 | W27: 13.77108333 | X27: -19.8 | Y27: -11.6 | AC27: 100.0001
A28: 16 | B28: 94.7528 | C28: 2.862 | D28: 0.805 | E28: 0.1037 | F28: 0.1173 | G28: 0.001 | H28: 0.0251 | I28: 0.0202 | J28: 0.0349 | K28: 0.0103 | L28: 1.0842 | M28: 0.1835 | N28: 0.708 | O28: 8224 | P28: 34.4329 | Q28: 9.564694444 | R28: 9113 | S28: 38.154 | T28: 10.59833333 | U28: 11885.59282 | V28: 49.7626 | W28: 13.82294444 | X28: -18.7 | Y28: -8.2 | Z28: <0,0001 | AA28: 0.0009 | AC28: 100 | AD28: ОК
A29: 17 | B29: 95.1013 | C29: 2.6131 | D29: 0.7528 | E29: 0.1025 | F29: 0.114 | G29: 0.001 | H29: 0.0248 | I29: 0.0201 | J29: 0.0334 | K29: 0.0106 | L29: 1.0573 | M29: 0.1693 | N29: 0.7055 | O29: 8204 | P29: 34.3482 | Q29: 9.541166667 | R29: 9091 | S29: 38.0638 | T29: 10.57327778 | U29: 11878.54686 | V29: 49.7331 | W29: 13.81475 | X29: -19.4 | Y29: -9.1 | AC29: 100.0002
A30: 18 | O30: 8204 | P30: 34.3482 | Q30: 9.541166667 | R30: 9091 | S30: 38.0638 | T30: 10.57327778 | U30: 11878.54686 | V30: 49.7331 | W30: 13.81475 | AC30: 0
A31: 19 | O31: 8204 | P31: 34.3482 | Q31: 9.541166667 | R31: 9091 | S31: 38.0638 | T31: 10.57327778 | U31: 11878.54686 | V31: 49.7331 | W31: 13.81475 | AC31: 0
A32: 20 | B32: 95.6835 | C32: 2.3711 | D32: 0.6927 | E32: 0.1018 | F32: 0.1035 | G32: 0.001 | H32: 0.0212 | I32: 0.016 | J32: 0.0201 | K32: 0.0117 | L32: 0.8146 | M32: 0.163 | N32: 0.7014 | O32: 8193 | P32: 34.3028 | Q32: 9.528555556 | R32: 9081 | S32: 38.0184 | T32: 10.56066667 | U32: 11899.58919 | V32: 49.8212 | W32: 13.83922222 | X32: -19 | Y32: -14.3 | AC32: 100.0002 | AD32: =IF(AC32=100,"ОК"," ") -> 
A33: 21 | B33: 96.2124 | C33: 2.0298 | D33: 0.6143 | E33: 0.0946 | F33: 0.0966 | G33: 0.0033 | H33: 0.0189 | I33: 0.0132 | J33: 0.0185 | K33: 0.0115 | L33: 0.7344 | M33: 0.1525 | N33: 0.6976 | O33: 8165 | P33: 34.1872 | Q33: 9.496444444 | R33: 9051 | S33: 37.8958 | T33: 10.52661111 | U33: 11893.5225 | V33: 49.7958 | W33: 13.83216667 | X33: -20.8 | Y33: -16.2 | AC33: 100 | AD33: ОК
A34: 22 | B34: 96.434 | C34: 1.8929 | D34: 0.5659 | E34: 0.0859 | F34: 0.0863 | G34: 0.0029 | H34: 0.0161 | I34: 0.0112 | J34: 0.0129 | K34: 0.0117 | L34: 0.7383 | M34: 0.142 | N34: 0.6955 | O34: 8145 | P34: 34.1009 | Q34: 9.472472222 | R34: 9029 | S34: 37.8035 | T34: 10.50097222 | U34: 11882.41617 | V34: 49.7493 | W34: 13.81925 | X34: -21.5 | Y34: -16.8 | AC34: 100.0001
A35: 23 | B35: 96.4349 | C35: 1.9021 | D35: 0.5672 | E35: 0.0859 | F35: 0.0862 | G35: 0.0026 | H35: 0.0158 | I35: 0.0109 | J35: 0.0129 | K35: 0.0113 | L35: 0.7256 | M35: 0.1446 | N35: 0.6955 | O35: 8146 | P35: 34.11 | Q35: 9.475 | R35: 9031 | S35: 37.81 | T35: 10.50277778 | U35: 11884 | V35: 49.76 | W35: 13.82222222 | X35: -20.9 | Y35: -16.4 | AC35: 100 | AD35: =IF(AC35=100,"ОК"," ") -> ОК
A36: 24 | B36: 96.3634 | C36: 1.9394 | D36: 0.5792 | E36: 0.0885 | F36: 0.0896 | G36: 0.0028 | H36: 0.017 | I36: 0.0117 | J36: 0.0136 | K36: 0.0121 | L36: 0.7361 | M36: 0.1465 | N36: 0.6961 | O36: 8151 | P36: 34.13 | Q36: 9.480555556 | R36: 9036 | S36: 37.83 | T36: =S36/3.6 -> 10.50833333 | U36: 11885 | V36: 49.76 | W36: 13.82222222 | X36: -20.8 | Y36: -16 | AC36: 99.9999
A37: 25 | O37: 8151 | P37: 34.13 | Q37: 9.480555556 | R37: 9036 | S37: 37.83 | T37: 10.50833333 | U37: 11885 | V37: 49.76 | W37: 13.82222222 | AC37: 0
A38: 26 | O38: 8151 | P38: 34.13 | Q38: 9.480555556 | R38: 9036 | S38: 37.83 | T38: 10.50833333 | U38: 11885 | V38: 49.76 | W38: 13.82222222 | AC38: 0
A39: 27 | B39: 96.2019 | C39: 2.0245 | D39: 0.6243 | E39: 0.0948 | F39: 0.096 | G39: 0.0014 | H39: 0.0185 | I39: 0.0132 | J39: 0.013 | K39: 0.0052 | L39: 0.7477 | M39: 0.1597 | N39: 0.6975 | O39: =P39*238.8459 -> 8163.752862 | P39: 34.18 | Q39: 9.494444444 | R39: =S39*238.8459 -> 9047.482692 | S39: 37.88 | T39: 10.52222222 | U39: =V39/0.0041868 -> 11889.74873 | V39: 49.78 | W39: 13.82777778 | X39: -21.1 | Y39: -17.5 | Z39: <0,0001 | AA39: 0.002 | AC39: 100.0002
A40: 28 | O40: 8163.752862 | P40: 34.18 | Q40: 9.494444444 | R40: 9047.482692 | S40: 37.88 | T40: 10.52222222 | U40: 11889.74873 | V40: 49.78 | W40: 13.82777778 | AC40: 0
A41: 29 | B41: 96.1882 | C41: 2.0721 | D41: 0.6594 | E41: 0.1046 | F41: 0.1031 | G41: 0.0041 | H41: 0.0205 | I41: 0.0145 | J41: 0.0047 | K41: 0.0076 | L41: 0.6366 | M41: 0.1845 | N41: 0.6982 | O41: =P41*238.8459 -> 8179.015115 | P41: 34.2439 | Q41: =P41/3.6 -> 9.512194444 | R41: =S41*238.8459 -> 9065.993249 | S41: 37.9575 | T41: =S41/3.6 -> 10.54375 | U41: 11908 | V41: 49.8549 | W41: =V41/3.6 -> 13.84858333 | X41: -20.6 | Y41: -2 | AC41: 99.9999
A42: 30 | O42: 8178.083616 | P42: 34.24 | Q42: =P42/3.6 -> 9.511111111 | R42: 9066.590364 | S42: 37.96 | T42: =S42/3.6 -> 10.54444444 | AC42: 0
A43: 31 | O43: 8179.015115 | P43: 34.2439 | Q43: =P43/3.6 -> 9.512194444 | R43: 9065.993249 | S43: 37.9575 | T43: =S43/3.6 -> 10.54375 | AC43: 0
A44: Рівень одоризації відповідає чинним нормативним документам | O44: 8175 | P44: 34.23 | Q44: 9.51 | R44: 9061 | S44: 37.94 | T44: 10.54
H45: Середньозважене значення теплоти згоряння:
B48: Начальник Криворізького ЛВУМГ Охримчук А.О.
C49: Підрозділу підприємства, якому підпорядкована лабораторія | O49: прізвище | R49: підпис | V49: дата
B50: Завідувач лабораторії Степанова О.Г.
C51: Лабораторія, де здійснювалось вимірювання газу | O51: прізвище | R51: підпис | V51: дата
B52: В.о.начальника служби ГВ та М Потабашній Є.В.
C53: Підрозділу, відповідального за облік газу за маршрутом | O53: прізвище | R53: підпис | V53: дата

Sheet додаток
A2: Додаток до Паспорту фізико-хімічних показників природного газу № 616
A4: Область | B4: ГРС, прямий споживач | C4: Cередньозважене значення вищої теплоти згоряння
C5: МДж/м³ | D5: ккал/м³ | E5: кВт*год./м³
A6: Дніпропетровська область | B6: ГРС 2 м.Дніпродзержинськ | C6: 37.93654118 | D6: 9060.987322 | E6: 10.53923919
B7: ГРС Новозалісся | E7: 10.53923919
B8: ГРС Вишневе | E8: 10.53923919
B9: ГРС Червоний Промінь | E9: 10.53923919
B10: ГРС Семенівка | E10: 10.53923919
B11: ГРС Сурсько-Михайлівка | E11: 10.53923919
B12: ГРС Вільногірськ | E12: 10.53923919
B13: ГРС Верхівцево | E13: 10.53923919
B14: ГРСс Верхньодніпровськ | E14: 10.53923919
B15: ГРС 1 м Дніпродзержинськ | E15: 10.53923919
B16: ГРС с.Лихівка | E16: 10.53923919
B17: ГРС АЗОТ | E17: 10.53923919
B18: ГРС АЗОТ( ПАТ Дніпрогаз) | E18: 10.53923919
B19: ГРС 3 м Дніпродзержинськ | E19: 10.53923919
E20: 10.53923919
E21: 10.53923919
E22: 10.53923919
E23: 10.53923919
E24: 10.53923919
E25: 10.53923919
E26: 10.53923919
E27: 10.53923919
E28: 10.53923919
E29: 10.53923919
E30: 10.53923919
E31: 10.53923919
E32: 10.53923919
E33: 10.53923919
E34: 10.53923919
E35: 10.53923919
E36: 10.53923919
E37: 10.53923919
E38: 10.53923919
B39: ='[1] розрахунок'!D6 -> ГРС Новозалісся | C39: 37.94121962 | D39: 9062.104748 | E39: 10.53923919
B40: ='[1] розрахунок'!E6 -> ГРС Вишневе | C40: 37.94121962 | D40: 9062.104748 | E40: 10.53923919
B41: ГРС Червоний Промінь | C41: 37.94121962 | D41: 9062.104748 | E41: 10.53923919
B42: ='[1] розрахунок'!G6 -> ГРС Семенівка | C42: 37.94036353 | D42: 9061.900273 | E42: 10.53923919
B43: ГРС Сурсько-Михайлівка | C43: 37.94660781 | D43: 9063.391694 | E43: 10.53923919
B44: ='[1] розрахунок'!I6 -> ГРС Вільногірськ | C44: 37.93293909 | D44: 9060.126976 | E44: 10.53923919
B45: ='[1] розрахунок'!J6 -> ГРС Верхівцево | C45: 37.94112301 | D45: 9062.081673 | E45: 10.53923919
B46: ='[1] розрахунок'!K6 -> ГРСс Верхньодніпровськ | C46: 37.9393 | D46: 9061.646253 | E46: 10.53923919
B47: ='[1] розрахунок'!L6 -> ГРС 1 м Дніпродзержинськ | C47: 37.94524167 | D47: 9063.065398 | E47: 10.53923919
B48: ГРС с.Лихівка | C48: 37.94126108 | D48: 9062.11465 | E48: 10.53923919
B49: ='[1] розрахунок'!N6 -> ГРС АЗОТ | C49: 37.9331536 | D49: 9060.17821 | E49: 10.53923919
B50: ГРС АЗОТ( ПАТ Дніпрогаз) | C50: 37.94209438 | D50: 9062.313681 | E50: 10.53947066
B51: ='[1] розрахунок'!O6 -> ГРС 3 м Дніпродзержинськ | C51: 37.94136034 | D51: 9062.138357 | E51: 10.53923919
B52: =#REF! -> 
A53: Середньозважене значення вищої теплоти згоряння по маршруту №616 | C53: 37.93794705 | D53: 9061.323107 | E53: 10.53831862
A57: Начальник Криворізького ЛВУМГ | D57: Охримчук А.О.
A58: Підрозділу підприємства, якому підпорядкована лабораторія | D58: прізвище | E58: підпис | F58: дата
A59: Завідувач лабораторії | D59: Степанова О.Г.
A60: Лабораторія, де здійснювалось вимірювання газу | D60: прізвище | E60: підпис | F60: дата
A61: В.о.начальника служби ГВ та М | D61: Потабашній Є.В.
A62: Підрозділу, відповідального за облік газу за маршрутом | D62: прізвище | E62: підпис | F62: дата

Sheet variablesList (hidden)
A1: 3 | B1: x:\gaysin | C1: 10, 11, 24, 25, 127, 128, 132, 180, 207, 215 | D1: x:\
B2: x:\Illinci
B3: x:\Talne
